bitfinex/quotes_BTCUSD_20250110
["timestamp","ask_amount","ask_price","bid_price","bid_amount"]
[1736527653186,0.003,94003.0,93953.0,0.09999926]
[1736527653187,0.212801,93985.0,93973.0,0.212827]
[1736527653394,0.425602,93985.0,93968.0,0.212837]
[1736527653597,0.212801,93985.0,93971.0,0.212829]
[1736527653816,0.212801,93985.0,93973.0,0.212827]
[1736527654807,0.31706076,94002.0,93968.0,0.212837]
[1736527655049,0.0492,93990.0,93950.0,0.0001704]
[1736527655259,0.1,93984.0,93950.0,0.0001704]
[1736527655468,0.1,93984.0,93973.0,0.006]
[1736527655469,0.10429976,93983.0,93973.0,0.006]
[1736527655674,0.212824,93974.0,93953.0,0.212872]
[1736527655859,0.10429976,93974.0,93950.0,0.0001704]
[1736527656059,0.212861,93958.0,93950.0,0.0001704]
[1736527656262,0.212848,93964.0,93950.0,0.0001704]
[1736527656465,0.10429976,93973.0,93950.0,0.0001704]
[1736527656668,0.212836,93969.0,93952.0,0.212874]
[1736527656898,0.212836,93969.0,93957.0,0.00065588]
[1736527657103,0.21285,93963.0,93957.0,0.00065588]
[1736527657303,0.21285,93963.0,93957.0,0.00465588]
[1736527657754,0.1,93985.0,93957.0,0.00465588]
[1736527657755,0.01083802,93997.0,93958.0,0.10536398]
[1736527657967,0.212783,93993.0,93978.0,0.212814]
[1736527658181,0.212764,94001.0,93985.0,0.212798]
[1736527658383,0.425528,94001.0,93985.0,0.212798]
[1736527658555,0.212773,93997.0,93985.0,0.212798]
[1736527658770,0.212773,93997.0,93982.0,0.212806]
[1736527658986,0.21271,94025.0,93983.0,0.10429976]
[1736527659204,0.21276,94003.0,93989.0,0.212789]
[1736527659401,0.21276,94003.0,93981.0,0.00944]
[1736527659402,0.10429976,94015.0,93981.0,0.00944]
[1736527659616,0.212768,93999.0,93983.0,0.212802]
[1736527659819,0.212768,93999.0,93977.0,0.212816]
[1736527659820,0.10429976,94015.0,93977.0,0.212816]
[1736527660027,0.212785,93992.0,93978.0,0.212815]
[1736527660230,0.212785,93992.0,93976.0,0.21282]
[1736527660436,0.212779,93995.0,93969.0,0.00944]
[1736527660641,0.10429976,94015.0,93985.0,0.001]
[1736527660859,0.10429976,94015.0,93985.0,0.10529976]
[1736527661061,0.10429976,94015.0,93990.0,0.212786]
[1736527661276,0.10429976,94015.0,93985.0,0.10529976]
[1736527661277,0.10429976,94015.0,93987.0,0.212794]
[1736527661534,0.212762,94002.0,93985.0,0.001]
[1736527661740,0.10429976,94015.0,93985.0,0.001]
[1736527661912,0.425546,93997.0,93985.0,0.001]
[1736527662372,0.10429976,94015.0,93976.0,0.00048548]
[1736527662583,0.212802,93984.0,93976.0,0.00048548]
[1736527662790,0.212814,93979.0,93977.0,0.001]
[1736527662963,0.212804,93983.0,93976.0,0.00048548]
[1736527663406,0.0772,93985.0,93976.0,0.00048548]
[1736527663619,0.312726,94018.0,93976.0,0.00048548]
[1736527663828,0.212735,94014.0,93977.0,0.11373976]
[1736527664029,0.003,93984.0,93982.0,0.212805]
[1736527664240,0.212746,94009.0,93978.0,0.21387889]
[1736527664241,0.362729,94016.0,93978.0,0.212815]
[1736527664451,0.10429976,94015.0,93982.0,0.212804]
[1736527664659,0.10429976,94015.0,93976.0,0.00048548]
[1736527664869,0.212777,93996.0,93979.0,0.212813]
[1736527665303,0.212766,94000.0,93982.0,0.212804]
[1736527665510,0.212756,94005.0,93983.0,0.09269976]
[1736527665715,0.212748,94008.0,93983.0,0.09269976]
[1736527665915,0.212729,94017.0,94001.0,0.212763]
[1736527666142,0.1,94037.0,93983.0,0.09269976]
[1736527666143,0.212703,94028.0,93983.0,0.09269976]
[1736527666343,0.212703,94028.0,93987.0,0.00944]
[1736527666548,0.212718,94021.0,93988.0,0.13725384]
[1736527666760,0.212703,94028.0,93989.0,0.18295408]
[1736527666966,0.00944,94050.0,93987.0,0.00944]
[1736527666967,0.004,94005.0,94004.0,0.212756]
[1736527667179,0.01039345,94034.0,94005.0,0.15]
[1736527667384,0.01039345,94034.0,94003.0,0.075]
[1736527667385,0.01039345,94034.0,94019.0,0.212721]
[1736527667592,0.003,94022.0,94006.0,0.13721313]
[1736527667802,0.003,94022.0,94006.0,0.10429976]
[1736527668210,0.212731,94016.0,93999.0,0.212767]
[1736527668418,0.21275,94007.0,93989.0,0.02165122]
[1736527668640,0.003,94022.0,93988.0,0.41878047]
[1736527668641,0.21276,94003.0,93988.0,0.41878047]
[1736527668847,0.21276,94003.0,93985.0,0.00944]
[1736527669049,0.212734,94014.0,93990.0,0.212787]
[1736527669050,0.212751,94007.0,93990.0,0.212787]
[1736527669255,0.001,94005.0,94004.0,0.008]
[1736527669463,0.10429976,94015.0,93990.0,0.212787]
[1736527669673,0.212756,94004.0,93990.0,0.212787]
[1736527669878,0.001,94003.0,93988.0,0.006]
[1736527670082,0.001,94003.0,93973.0,0.00944]
[1736527670083,0.212791,93989.0,93977.0,0.212816]
[1736527670286,0.212782,93993.0,93981.0,0.212808]
[1736527670496,0.212782,93993.0,93990.0,0.003]
[1736527670705,0.0775,94004.0,93974.0,0.212824]
[1736527670879,0.0775,94004.0,93957.0,0.1501704]
[1736527670880,0.212804,93983.0,93969.0,0.212835]
[1736527671084,0.212791,93989.0,93974.0,0.212824]
[1736527671697,0.212799,93986.0,93970.0,0.212832]
[1736527671903,0.212799,93986.0,93974.0,0.212823]
[1736527672129,0.21290429,94003.0,93975.0,0.1053638]
[1736527672130,0.00014529,94003.0,93975.0,0.1053638]
[1736527672337,0.00014529,94003.0,93990.0,0.005]
[1736527672545,0.00014529,94003.0,93992.0,0.212784]
[1736527673692,0.21290529,94003.0,93992.0,0.212784]
[1736527674094,0.00014529,94003.0,93992.0,0.001]
[1736527674445,0.212779,93995.0,93992.0,0.001]
[1736527674659,0.10429976,93994.0,93992.0,0.001]
[1736527674808,0.212781,93993.0,93992.0,0.001]
[1736527675017,0.31708076,93993.0,93992.0,0.001]
[1736527675841,0.39738076,93993.0,93992.0,0.001]
[1736527676042,0.39738076,93993.0,93963.0,0.00944]
[1736527676043,0.21283,93972.0,93963.0,0.00944]
[1736527676256,0.18459976,93993.0,93963.0,0.00944]
[1736527676460,0.18459976,93993.0,93965.0,0.212844]
[1736527676636,0.212784,93992.0,93978.0,0.212815]
[1736527676838,0.006,93993.0,93974.0,0.212823]
[1736527677037,0.006,93993.0,93972.0,0.212829]
[1736527677323,0.212804,93984.0,93972.0,0.212829]
[1736527677878,0.0803,94005.0,93980.0,0.212811]
[1736527678080,0.10429976,94004.0,93984.0,0.212801]
[1736527678264,0.0803,94005.0,93985.0,0.10429976]
[1736527678477,0.212744,94010.0,93986.0,0.212797]
[1736527678679,0.2275,94019.0,93986.0,0.31709676]
[1736527678680,0.15,94014.0,93986.0,0.31709676]
[1736527678865,0.0775,94019.0,93986.0,0.31709676]
[1736527679064,0.212746,94009.0,93987.0,0.212795]
[1736527679310,0.004,93993.0,93987.0,0.212795]
[1736527679482,0.212746,94009.0,93992.0,0.212784]
[1736527679884,0.009,94014.0,93993.0,0.10429976]
[1736527680127,0.0775,94019.0,93997.0,0.21277]
[1736527680366,0.21274,94012.0,93994.0,0.212779]
[1736527680535,0.0775,94019.0,94002.0,0.21276]
[1736527680736,0.0775,94019.0,94003.0,0.212759]
[1736527680979,0.0775,94019.0,93988.0,0.212792]
[1736527680980,0.0801,94032.0,94004.0,0.10429976]
[1736527681109,0.01040602,94039.0,94005.0,0.078]
[1736527681339,0.212682,94037.0,94013.0,0.212735]
[1736527681578,0.212702,94029.0,94013.0,0.212735]
[1736527681974,0.212702,94029.0,93996.0,0.03386858]
[1736527682173,0.003,94014.0,94004.0,0.212754]
[1736527682499,0.003,94014.0,93996.0,0.22364158]
[1736527682500,0.212737,94013.0,93996.0,0.212773]
[1736527682697,0.212737,94013.0,93997.0,0.212772]
[1736527683059,0.212737,94013.0,94000.0,0.212764]
[1736527683260,0.212731,94016.0,94000.0,0.212764]
[1736527683466,0.21274,94012.0,94000.0,0.212764]
[1736527683890,0.076,94019.0,94004.0,0.212755]
[1736527683891,0.212725,94018.0,94004.0,0.212755]
[1736527684086,0.076,94019.0,94000.0,0.212764]
[1736527684318,0.212709,94025.0,93994.0,0.212779]
[1736527684521,0.295699,94030.0,93992.0,0.02103063]
[1736527684522,0.083,94030.0,94011.0,0.212739]
[1736527684822,0.10429976,94029.0,93999.0,0.0094]
[1736527684996,0.10429976,94029.0,94000.0,0.212765]
[1736527685203,0.212779,93995.0,93980.0,0.212809]
[1736527685406,0.0809,94002.0,93966.0,0.075]
[1736527685786,0.212806,93983.0,93972.0,0.212828]
[1736527686214,0.15,93999.0,93955.0,0.0094]
[1736527686435,0.10429976,93998.0,93960.0,0.19524337]
[1736527686652,0.10429976,93998.0,93961.0,0.1053639]
[1736527686860,0.10429976,93998.0,93976.0,0.212819]
[1736527687065,0.15,93997.0,93962.0,0.212852]
[1736527687273,0.212802,93984.0,93972.0,0.001]
[1736527687501,0.15,93997.0,93973.0,0.10429976]
[1736527687679,0.212804,93984.0,93971.0,0.212829]
[1736527687909,0.212798,93986.0,93974.0,0.212822]
[1736527688120,0.15,93995.0,93957.0,0.0001704]
[1736527688321,0.212834,93970.0,93957.0,0.10447016]
[1736527688561,0.212838,93968.0,93957.0,0.0001704]
[1736527688749,0.212838,93968.0,93958.0,0.212861]
[1736527689103,0.212846,93965.0,93957.0,0.0001704]
[1736527689309,0.212838,93968.0,93957.0,0.0001704]
[1736527689536,0.1,93986.0,93957.0,0.00065588]
[1736527689686,0.21286,93959.0,93957.0,0.00065588]
[1736527689922,0.31715976,93959.0,93957.0,0.00065588]
[1736527690151,0.25429976,93958.0,93957.0,0.00065588]
[1736527690563,0.10429976,93958.0,93957.0,0.00065588]
[1736527691402,0.21486,93959.0,93957.0,0.00065588]
[1736527692460,0.10429976,93958.0,93957.0,0.00065588]
[1736527692832,0.212854,93961.0,93957.0,0.00065588]
[1736527693276,0.002,93958.0,93957.0,0.00065588]
[1736527693458,0.425709,93961.0,93957.0,0.00065588]
[1736527693808,0.001,93958.0,93957.0,0.00065588]
[1736527694016,0.10429976,93958.0,93957.0,0.00065588]
[1736527694222,0.35429976,93958.0,93957.0,0.00065588]
[1736527694420,0.10429976,93958.0,93957.0,0.00365588]
[1736527694629,0.10429976,93958.0,93957.0,0.00065588]
[1736527695043,0.212858,93959.0,93957.0,0.00065588]
[1736527695250,0.212854,93961.0,93957.0,0.00065588]
[1736527695446,0.425709,93961.0,93957.0,0.00065588]
[1736527696094,0.002,93958.0,93957.0,0.00065588]
[1736527696495,0.425709,93961.0,93957.0,0.00065588]
[1736527696723,0.428709,93961.0,93957.0,0.00065588]
[1736527696931,0.212858,93959.0,93957.0,0.00065588]
[1736527697137,0.10429976,93958.0,93957.0,0.00065588]
[1736527698675,0.25429976,93958.0,93957.0,0.00065588]
[1736527699543,0.26490968,93958.0,93957.0,0.00065588]
[1736527699757,0.26690968,93958.0,93957.0,0.00065588]
[1736527700132,0.26490968,93958.0,93957.0,0.00065588]
[1736527700546,0.26690968,93958.0,93957.0,0.00065588]
[1736527701514,0.002,93958.0,93957.0,0.00065588]
[1736527702752,0.212858,93959.0,93957.0,0.00065588]
[1736527702962,0.31715776,93959.0,93957.0,0.00065588]
[1736527703134,0.001,93958.0,93957.0,0.00065588]
[1736527703788,0.10529976,93958.0,93957.0,0.00065588]
[1736527703990,0.212858,93959.0,93957.0,0.00065588]
[1736527704200,0.214858,93959.0,93957.0,0.00065588]
[1736527704601,0.212858,93959.0,93957.0,0.00065588]
[1736527704772,0.01073225,93966.0,93957.0,0.00065588]
[1736527704773,0.212844,93966.0,93957.0,0.00065588]
[1736527704990,0.212836,93969.0,93957.0,0.21351788]
[1736527705191,0.212847,93964.0,93957.0,0.00065588]
[1736527705391,0.212856,93961.0,93957.0,0.00065588]
[1736527705633,0.425712,93961.0,93957.0,0.00065588]
[1736527705753,0.212856,93961.0,93957.0,0.00065588]
[1736527705958,0.212856,93961.0,93957.0,0.00054588]
[1736527705959,0.001,93958.0,93957.0,0.00054588]
[1736527706165,0.212856,93961.0,93957.0,0.00054588]
[1736527706602,0.212856,93961.0,93957.0,0.00154588]
[1736527706803,0.425711,93961.0,93957.0,0.00054588]
[1736527707285,0.425711,93961.0,93957.0,0.00354588]
[1736527707503,0.212793,93988.0,93957.0,0.00054588]
[1736527707704,0.212835,93970.0,93957.0,0.00054588]
[1736527707903,0.212844,93966.0,93957.0,0.00254588]
[1736527708141,0.212813,93979.0,93957.0,0.21540788]
[1736527708345,0.15,93990.0,93957.0,0.21540788]
[1736527708346,0.212818,93977.0,93957.0,0.00254588]
[1736527708550,0.212851,93963.0,93957.0,0.00254588]
[1736527709386,0.212842,93966.0,93957.0,0.00254588]
[1736527710274,0.212822,93975.0,93957.0,0.21540788]
[1736527710510,0.1329605,93989.0,93958.0,0.212861]
[1736527710717,0.212797,93986.0,93958.0,0.10429976]
[1736527710919,0.212806,93983.0,93968.0,0.212836]
[1736527711096,0.212806,93983.0,93958.0,0.10429976]
[1736527711306,0.21277,93998.0,93970.0,0.19603208]
[1736527711513,0.01082327,94001.0,93980.0,0.19603208]
[1736527711717,0.21275,94007.0,93993.0,0.21278]
[1736527711925,0.21275,94007.0,93990.0,0.212787]
[1736527712134,0.212761,94003.0,93981.0,0.10429976]
[1736527712547,0.10429976,94002.0,93972.0,1.5]
[1736527712753,0.21282,93976.0,93954.0,0.212868]
[1736527712965,0.0752,93986.0,93958.0,0.10429976]
[1736527713163,0.212798,93986.0,93973.0,0.212826]
[1736527713374,0.212798,93986.0,93971.0,0.21283]
[1736527713577,0.0752,93999.0,93971.0,0.10429976]
[1736527713804,0.00014529,94002.0,93991.0,0.212785]
[1736527714043,0.00014529,94002.0,93980.0,0.20543208]
[1736527714251,0.00014529,94002.0,93981.0,0.12729976]
[1736527714458,0.00014529,94002.0,93998.0,0.212768]
[1736527714661,0.00014529,94002.0,93995.0,0.212776]
[1736527714874,0.00014529,94002.0,93999.0,0.212767]
[1736527715080,0.00014529,94002.0,93995.0,0.212776]
[1736527715757,0.00014529,94002.0,93990.0,0.02164053]
[1736527716029,0.00014529,94002.0,93984.0,0.0094]
[1736527716442,0.00014529,94002.0,93979.0,0.212813]
[1736527716443,0.212765,94000.0,93979.0,0.212813]
[1736527716629,0.212786,93991.0,93978.0,0.15]
[1736527716838,0.1263,94001.0,93975.0,0.01084541]
[1736527717044,0.212787,93991.0,93968.0,0.212838]
[1736527717381,0.10429976,94000.0,93968.0,0.212838]
[1736527717591,0.15,93998.0,93960.0,0.01044125]
[1736527717822,0.1263,94001.0,93953.0,0.21287]
[1736527717823,0.212839,93968.0,93953.0,0.21287]
[1736527718073,0.10429976,93997.0,93956.0,0.02158537]
[1736527718074,0.0791,93976.0,93956.0,0.02158537]
[1736527718571,0.212818,93977.0,93966.0,0.212841]
[1736527718842,0.0832,93988.0,93966.0,0.212841]
[1736527718843,0.21282,93976.0,93966.0,0.212841]
[1736527719097,0.212814,93979.0,93966.0,0.00048548]
[1736527719352,0.212814,93979.0,93966.0,0.21332748]
[1736527719581,0.212822,93976.0,93966.0,0.21332748]
[1736527719815,0.212822,93976.0,93966.0,0.00048548]
[1736527720044,0.212804,93983.0,93966.0,0.00048548]
[1736527720284,0.0832,93988.0,93966.0,0.10478524]
[1736527720285,0.212803,93984.0,93966.0,0.10478524]
[1736527720765,0.0832,93988.0,93966.0,0.10478524]
[1736527720766,0.0832,93988.0,93968.0,0.212838]
[1736527720992,0.21277,93998.0,93982.0,0.212806]
[1736527721207,0.212762,94002.0,93989.0,0.212789]
[1736527721654,0.21277,93999.0,93989.0,0.212789]
[1736527721907,0.212762,94002.0,93980.0,0.02178989]
[1736527722139,0.212776,93996.0,93984.0,0.2128]
[1736527722503,0.425552,93996.0,93984.0,0.2128]
[1736527722917,0.006,94002.0,93999.0,0.425533]
[1736527723117,0.006,94002.0,94001.0,0.212763]
[1736527723490,0.006,94002.0,94001.0,0.31706276]
[1736527723904,8.53e-05,94027.0,94014.0,0.212734]
[1736527724104,0.00023064,94022.0,94020.0,0.21272]
[1736527724314,0.00023064,94022.0,94011.0,0.212741]
[1736527724529,0.00023064,94022.0,94020.0,0.21272]
[1736527724919,0.00023064,94022.0,94017.0,0.212726]
[1736527725118,0.00023064,94022.0,94020.0,0.212718]
[1736527725321,0.00023064,94022.0,94002.0,0.15]
[1736527725322,0.00023064,94022.0,94014.0,0.212732]
[1736527725683,0.00023064,94022.0,94018.0,0.212724]
[1736527725848,0.00223064,94022.0,94018.0,0.212724]
[1736527726064,0.00223064,94022.0,94018.0,0.425449]
[1736527726375,0.00223064,94022.0,94018.0,0.212724]
[1736527726819,0.00223064,94022.0,94018.0,0.425448]
[1736527727559,0.00223064,94022.0,94020.0,0.21272]
[1736527727802,0.00223064,94022.0,94021.0,0.21066314]
[1736527727803,0.00023064,94022.0,94021.0,0.21066314]
[1736527728009,0.00023064,94022.0,94021.0,0.55959902]
[1736527728010,6.4e-07,94022.0,94021.0,0.55959902]
[1736527728168,8.52e-05,94047.0,94046.0,0.212661]
[1736527728361,8.52e-05,94047.0,94046.0,0.34936076]
[1736527728570,8.52e-05,94047.0,94046.0,0.32636076]
[1736527728941,8.52e-05,94047.0,94046.0,0.31696076]
[1736527729157,8.52e-05,94047.0,94046.0,0.212661]
[1736527729388,8.52e-05,94047.0,94046.0,0.222061]
[1736527729784,8.52e-05,94047.0,94043.0,0.0094]
[1736527729988,8.52e-05,94047.0,94044.0,0.212666]
[1736527730656,8.52e-05,94047.0,94043.0,0.0094]
[1736527731050,8.52e-05,94047.0,94044.0,0.212666]
[1736527732349,8.52e-05,94047.0,94043.0,0.0094]
[1736527732936,0.0010852,94047.0,94046.0,0.004]
[1736527734477,1e-08,94047.0,94046.0,0.28129976]
[1736527734685,8.53e-05,94059.0,94058.0,0.385634]
[1736527734892,8.53e-05,94059.0,94058.0,0.48993376]
[1736527735356,0.00023083,94059.0,94058.0,0.46693376]
[1736527735740,0.00023083,94059.0,94058.0,0.32633376]
[1736527736646,0.00023083,94059.0,94058.0,0.01061205]
[1736527737095,0.00023083,94059.0,94056.0,0.23422406]
[1736527737547,0.00023083,94059.0,94021.0,1.5]
[1736527737548,0.00023083,94059.0,94043.0,0.216667]
[1736527737727,0.00023083,94059.0,94043.0,0.212667]
[1736527737728,0.08223083,94059.0,94043.0,0.212667]
[1736527737949,0.212634,94058.0,94043.0,0.212667]
[1736527738067,0.212643,94054.0,94039.0,0.23427058]
[1736527738270,0.212643,94054.0,94039.0,0.02159458]
[1736527738517,0.212638,94057.0,94039.0,0.02159458]
[1736527738717,0.08323083,94059.0,94039.0,0.02159458]
[1736527738718,0.00123083,94059.0,94052.0,0.212648]
[1736527738892,0.00023083,94059.0,94052.0,0.212648]
[1736527739097,0.00023083,94059.0,94050.0,0.212652]
[1736527739300,0.00523083,94059.0,94040.0,0.30973184]
[1736527739531,0.00523083,94059.0,94040.0,0.11369976]
[1736527739745,0.00523083,94059.0,94043.0,0.212668]
[1736527739947,0.00523083,94059.0,94044.0,0.10429976]
[1736527740154,0.00523083,94059.0,94052.0,0.212647]
[1736527740417,0.00523083,94059.0,94052.0,0.10429976]
[1736527740677,0.00523083,94059.0,94047.0,0.212657]
[1736527740858,0.00023083,94059.0,94050.0,0.21265]
[1736527740996,0.00023083,94059.0,94055.0,0.212639]
[1736527741209,0.00023083,94059.0,94050.0,0.425302]
[1736527741210,0.00023083,94059.0,94052.0,0.001]
[1736527741400,0.00023083,94059.0,94048.0,1.5]
[1736527741601,0.00023083,94059.0,94047.0,0.31695676]
[1736527741827,0.00023083,94059.0,94047.0,0.32095676]
[1736527742049,0.00023083,94059.0,94047.0,0.004]
[1736527742254,0.00023083,94059.0,94023.0,0.212713]
[1736527742459,0.00023083,94059.0,94022.0,0.0443]
[1736527742460,0.00023083,94059.0,94038.0,0.02179439]
[1736527742663,0.21286483,94059.0,94040.0,0.19603208]
[1736527742863,0.21286483,94059.0,94052.0,0.004]
[1736527743779,0.212641,94055.0,94052.0,0.004]
[1736527743991,0.21286483,94059.0,94052.0,0.004]
[1736527744151,0.212641,94055.0,94052.0,0.004]
[1736527744366,0.212641,94055.0,94044.0,0.212666]
[1736527744592,0.00623083,94059.0,94048.0,0.212655]
[1736527744794,0.212652,94051.0,94043.0,0.0094]
[1736527744996,0.00023083,94059.0,94056.0,0.212638]
[1736527745427,0.00023083,94059.0,94057.0,0.10536292]
[1736527745632,0.00023083,94059.0,94058.0,0.212634]
[1736527745833,0.00023083,94059.0,94058.0,0.31693376]
[1736527746437,0.00023083,94059.0,94043.0,0.001]
[1736527746667,0.00023083,94059.0,94047.0,0.212659]
[1736527746871,0.00023083,94059.0,94044.0,0.10429976]
[1736527747290,0.00023083,94059.0,94046.0,0.212661]
[1736527747493,0.212634,94058.0,94046.0,0.212661]
[1736527747709,0.212662,94046.0,94043.0,0.001]
[1736527747913,0.212666,94044.0,94043.0,0.001]
[1736527748130,0.31696576,94044.0,94043.0,0.001]
[1736527748688,0.31696576,94044.0,94014.0,0.01036202]
[1736527748689,0.212644,94054.0,94020.0,0.19603208]
[1736527748891,0.212637,94057.0,94043.0,0.212666]
[1736527749066,0.212662,94046.0,94031.0,0.212695]
[1736527749297,0.212662,94046.0,94032.0,0.10429976]
[1736527749499,0.00023083,94059.0,94021.0,0.0094]
[1736527749705,0.15,94057.0,94021.0,0.0094]
[1736527749986,0.212726,94018.0,94004.0,0.042603]
[1736527750254,0.212726,94018.0,94005.0,0.212754]
[1736527750514,0.212684,94036.0,94006.0,0.10536348]
[1736527750726,0.004,94044.0,94020.0,0.19603208]
[1736527750727,0.0781,94043.0,94020.0,0.19603208]
[1736527750932,0.21267,94042.0,94028.0,0.212701]
[1736527751436,0.0781,94043.0,94022.0,0.212716]
[1736527751643,0.212681,94038.0,94029.0,1.5]
[1736527751865,0.21269,94034.0,94017.0,0.212726]
[1736527752271,0.212697,94031.0,94017.0,0.212726]
[1736527752475,0.212682,94038.0,94021.0,0.212717]
[1736527752889,0.212682,94038.0,94017.0,0.01042897]
[1736527753161,0.001,94034.0,94010.0,0.212742]
[1736527753368,0.212691,94033.0,94012.0,0.212738]
[1736527753581,0.15,94041.0,94010.0,0.00014534]
[1736527753795,0.212703,94028.0,94021.0,0.002]
[1736527754209,0.212703,94028.0,94010.0,0.02108555]
[1736527754386,0.10429976,94040.0,94010.0,0.02108555]
[1736527754587,0.10429976,94040.0,94010.0,0.00014534]
[1736527754785,0.212712,94024.0,94010.0,0.00014534]
[1736527755857,0.10429976,94023.0,94010.0,0.00014534]
[1736527756101,0.0813,94022.0,94010.0,0.00014534]
[1736527757307,0.212694,94032.0,94010.0,0.1044451]
[1736527757602,0.212694,94032.0,94015.0,0.212729]
[1736527757844,0.212694,94032.0,94010.0,0.00014534]
[1736527758018,0.212708,94026.0,94011.0,0.212741]
[1736527758257,0.212717,94022.0,94010.0,0.01089911]
[1736527758471,0.212717,94022.0,94010.0,0.00014534]
[1736527759090,0.21271,94025.0,94010.0,0.00014534]
[1736527759303,0.362689,94034.0,94010.0,0.00014534]
[1736527759586,0.15,94033.0,94011.0,0.212741]
[1736527759793,0.212712,94024.0,94010.0,0.00014534]
[1736527760005,0.212722,94020.0,94010.0,0.00014534]
[1736527760214,0.10429976,94034.0,94010.0,0.00014534]
[1736527760215,0.212737,94013.0,94010.0,0.00014534]
[1736527760429,0.0825,94012.0,94010.0,0.00014534]
[1736527760651,0.212741,94011.0,94010.0,0.00014534]
[1736527761076,0.10429976,94019.0,94010.0,0.00014534]
[1736527761077,0.212718,94022.0,94010.0,0.00014534]
[1736527761289,0.212718,94021.0,94010.0,0.00014534]
[1736527761498,0.212741,94011.0,94010.0,0.00014534]
[1736527761705,0.212741,94011.0,94010.0,0.00214534]
[1736527761917,0.212741,94011.0,94010.0,0.00014534]
[1736527762306,0.212741,94011.0,94010.0,0.00214534]
[1736527762307,0.213741,94011.0,94010.0,0.00214534]
[1736527762442,0.31804076,94011.0,94010.0,0.00214534]
[1736527762854,0.46804076,94011.0,94010.0,0.00214534]
[1736527763254,0.213741,94011.0,94010.0,0.00214534]
[1736527763460,0.212741,94011.0,94010.0,0.00014534]
[1736527764309,0.213741,94011.0,94010.0,0.00014534]
[1736527764798,0.212741,94011.0,94010.0,0.00014534]
[1736527764952,0.213741,94011.0,94010.0,0.00014534]
[1736527765557,0.001,94011.0,94010.0,0.00014534]
[1736527769847,0.10529976,94011.0,94010.0,0.00014534]
[1736527770046,0.15489976,94011.0,94010.0,0.00014534]
[1736527771397,0.23039976,94011.0,94010.0,0.00014534]
[1736527772089,0.43440378,94011.0,94010.0,0.00014534]
[1736527772298,0.43440378,94011.0,93980.0,0.0001704]
[1736527772299,0.212808,93981.0,93980.0,0.0001704]
[1736527773530,0.212808,93981.0,93980.0,0.00065588]
[1736527774113,0.212797,93986.0,93980.0,0.00065588]
[1736527774293,0.212806,93983.0,93980.0,0.00065588]
[1736527775090,0.212797,93987.0,93980.0,0.00065588]
[1736527775289,0.212803,93984.0,93980.0,0.00065588]
[1736527775500,0.425606,93984.0,93980.0,0.00065588]
[1736527776109,0.15,93981.0,93980.0,0.00065588]
[1736527776333,0.33469976,93981.0,93980.0,0.00065588]
[1736527776532,0.43469976,93981.0,93980.0,0.00065588]
[1736527776741,0.43469976,93981.0,93980.0,0.00165588]
[1736527776982,0.0804,93981.0,93980.0,0.00065588]
[1736527777240,0.212804,93983.0,93980.0,0.00065588]
[1736527777440,0.007,93981.0,93980.0,0.00065588]
[1736527778239,0.212797,93987.0,93980.0,0.00065588]
[1736527778705,0.425594,93987.0,93980.0,0.00165588]
[1736527778912,0.212797,93987.0,93980.0,0.00165588]
[1736527779320,0.0765,93993.0,93980.0,0.00165588]
[1736527779521,0.212806,93983.0,93980.0,0.00165588]
[1736527780365,0.425612,93983.0,93980.0,0.00165588]
[1736527780539,0.212808,93981.0,93980.0,0.00065588]
[1736527780739,0.212808,93981.0,93980.0,0.00165588]
[1736527780940,0.212806,93983.0,93980.0,0.00165588]
[1736527781150,0.212805,93983.0,93980.0,0.00065588]
[1736527781352,0.42561,93983.0,93980.0,0.00065588]
[1736527782221,0.42661,93983.0,93980.0,0.00065588]
[1736527783065,0.212808,93981.0,93980.0,0.00065588]
[1736527783277,0.31710776,93981.0,93980.0,0.00065588]
[1736527783478,0.46710776,93981.0,93980.0,0.00065588]
[1736527784166,0.47748744,93981.0,93980.0,0.00065588]
[1736527784369,0.79135852,93981.0,93980.0,8.8e-07]
[1736527784609,0.89135852,93981.0,93980.0,8.8e-07]
[1736527785125,0.362827,93973.0,93957.0,0.0005604]
[1736527785326,0.46712676,93973.0,93957.0,0.0005604]
[1736527785676,0.54912676,93973.0,93957.0,0.0005604]
[1736527786099,0.64912676,93973.0,93957.0,0.0005604]
[1736527786525,0.65712676,93973.0,93957.0,0.0005604]
[1736527786767,0.78012676,93973.0,93972.0,4e-07]
[1736527787519,0.65712676,93973.0,93972.0,4e-07]
[1736527788367,0.55712676,93973.0,93972.0,4e-07]
[1736527788807,0.220827,93973.0,93972.0,4e-07]
[1736527788983,0.212827,93973.0,93972.0,4e-07]
[1736527789142,0.220827,93973.0,93972.0,4e-07]
[1736527789340,0.32512676,93973.0,93972.0,4e-07]
[1736527789968,0.212827,93973.0,93972.0,4e-07]
[1736527790373,0.218827,93973.0,93972.0,4e-07]
[1736527790576,0.212827,93973.0,93972.0,4e-07]
[1736527792274,0.219827,93973.0,93972.0,4e-07]
[1736527792639,0.212827,93973.0,93972.0,4e-07]
[1736527793040,0.215827,93973.0,93972.0,4e-07]
[1736527793235,0.212827,93973.0,93972.0,4e-07]
[1736527793963,0.215827,93973.0,93972.0,4e-07]
[1736527794183,0.212827,93973.0,93972.0,4e-07]
[1736527794839,0.46712676,93973.0,93972.0,4e-07]
[1736527795051,0.56712676,93973.0,93972.0,4e-07]
[1736527795254,0.56712676,93973.0,93943.0,0.000163]
[1736527795255,0.425777,93946.0,93943.0,0.000163]
[1736527796078,0.53007676,93946.0,93943.0,0.000163]
[1736527796495,0.212888,93946.0,93943.0,0.00030867]
[1736527796902,0.425777,93946.0,93943.0,0.00030867]
[1736527797480,0.426777,93946.0,93943.0,0.00130867]
[1736527798338,0.212892,93944.0,93943.0,0.00130867]
[1736527798561,0.39269176,93944.0,93943.0,0.00130867]
[1736527798729,0.54269176,93944.0,93943.0,0.00130867]
[1736527798888,0.54269176,93944.0,93943.0,0.00030867]
[1736527799289,0.59372346,93944.0,93943.0,0.00030867]
[1736527799893,0.59772346,93944.0,93943.0,0.00030867]